Cogmind - Beta 14 @@@ ROGUE MODE // 2024.09.03 @ 22:32:11 Player: celerysam Result: Destroyed self with Improved Grenade Launcher Performance ------------- Evolutions (2) 1000 Regions Visited (6) 1200 Robots Destroyed (23) 115 Value Destroyed (629) 629 Prototype IDs (0) 0 Alien Tech Used (0) 0 Bonus (116) 116 TOTAL SCORE: 3060 Bonus ------- Follower Combat Kills 116 Cogmind --------- Core Integrity 0/550 Matter 80/300 Energy 299/300 System Corruption 0% Temperature Cool (0) Movement Core (150) Ox2 Location -8/Storage Parts ------- > --- POWER (1) -------- (None) > --- PROPULSION (4) --- (None) > --- UTILITY (4) ------ Compact Battery > --- WEAPON (2) ------- Improved Grenade Launcher > --- INVENTORY (5) ---- Light Ion Engine Light Nuclear Core Wheel Weight Redist. System Powered Hammer Peak State ------------ > --- POWER ------------ Micro Nuclear Core > --- PROPULSION ------- Hover Unit Hover Unit Hover Unit Improved Hover Unit > --- UTILITY ---------- Structural Scanner Seismic Detector Light Armor Plating Hardened Light Armor Plating > --- WEAPON ----------- Pulse Rifle Powered Hammer > --- INVENTORY -------- Improved Ion Engine Light Nuclear Core Weight Redist. System EM Shotgun Mini Grenade Launcher [Rating: 22] Favorites ----------- Power Light Ion Engine Engine Light Ion Engine Power Core Micro Nuclear Core Propulsion Hover Unit Treads Light Treads Wheel Compact Wheel Hover Unit Hover Unit Flight Unit Flight Unit Utility Seismic Detector Device Seismic Detector Storage Small Storage Unit Protection Hardened Light Armor Plating Weapon Assault Rifle Energy Gun Medium Laser Ballistic Gun Assault Rifle Ballistic Cannon Flak Cannon Launcher Mini Grenade Launcher Impact Weapon Powered Hammer Build | -11 -10 -10 -9 -9 -8 -8 ------- Run | Yrd Mat Min Mat Min Mat Sto Slots Evolved 4 | . . . 2 . 2 . Power . | . . . . . . . Propulsion 2 | . . . 2 . . . Utility 2 | . . . . . 2 . Weapon . | . . . . . . . Parts Attached 42 | 5 4 . 10 5 6 12 Power 8 | . 3 . 1 1 . 3 Engine 5 | . 3 . . . . 2 Core 3 | . . . 1 1 . 1 Reactor . | . . . . . . . Propulsion 11 | 2 . . 4 . 1 4 Treads 1 | . . . . . . 1 Leg . | . . . . . . . Wheel 2 | 2 . . . . . . Hover 5 | . . . 4 . 1 . Flight 3 | . . . . . . 3 Utility 11 | 1 1 . 3 1 3 2 Device 6 | . 1 . 1 1 2 1 Storage 2 | 1 . . . . . 1 Processor . | . . . . . . . Hackware . | . . . . . . . Protection 3 | . . . 2 . 1 . Artifact . | . . . . . . . Weapon 12 | 2 . . 2 3 2 3 Energy Gun 5 | 1 . . 1 2 . 1 Energy Cannon . | . . . . . . . Ballistic Gun 1 | 1 . . . . . . Ballistic Cannon 1 | . . . . . 1 . Launcher 4 | . . . 1 1 . 2 Special Weapon . | . . . . . . . Impact Weapon 1 | . . . . . 1 . Slashing Weapon . | . . . . . . . Piercing Weapon . | . . . . . . . Special Melee Weapon . | . . . . . . . Unidentified Prototypes . | . . . . . . . Parts Lost 21 | . 1 . . . 4 16 Power 3 | . 1 . . . . 2 Propulsion 8 | . . . . . . 8 Utility 6 | . . . . . 3 3 Weapon 4 | . . . . . 1 3 Highest Loss Streak 10 | . 1 . . . 4 10 To Critical Strikes 1 | . . . . . . 1 Average Slot Usage (%) 87 | . 91 . 100 100 96 61 Engine 3 | . 8 . 7 . . 2 Core 4 | . . . 3 11 9 . Wheel 6 | . 28 . 1 . . . Hover 25 | . . . 42 44 34 15 Device 11 | . 11 . 6 11 18 11 Storage 6 | . 14 . 5 . . 9 Protection 6 | . . . 9 11 16 . Energy Gun 9 | . 14 . 9 14 10 2 Ballistic Gun 5 | . 14 . 11 2 . . Ballistic Cannon 2 | . . . . . . 7 Launcher 1 | . . . 1 4 . . Impact Weapon 2 | . . . . . 6 5 Peak Build Rating 22 | 5 7 7 15 18 22 22 Average Rating 12 | 3 6 7 11 16 20 13 On Entrance 10 | . 5 7 7 15 18 19 Naked Turns . | . . . . . . . Heaviest Build 22 | 9 15 13 17 18 22 18 Greatest Support 32 | 32 32 32 25 25 25 25 Greatest Overweight (x) 3 | . . . . . 1 3 Average Overweight (x) . | . . . . . . . Largest Inventory Capacity 8 | 8 8 8 8 5 5 5 Average Capacity 6 | 7 8 8 6 5 5 5 Most Carried 8 | 8 8 8 8 5 5 5 Average Carried 5 | 5 7 8 6 5 4 4 Final Capacity 8 | 8 8 8 5 5 5 5 Final Carried 8 | 7 8 8 5 5 5 5 Class Distribution -------------------- 100% | Mutant Dominant Class ---------------- Mutant | -10/Materials Mutant | -10/Mines Mutant | -9/Materials Mutant | -9/Mines Mutant | -8/Materials Mutant | -8/Storage Resources | -11 -10 -10 -9 -9 -8 -8 ----------- Run | Yrd Mat Min Mat Min Mat Sto Matter Collected 520 | 226 10 . . 38 169 77 Remotely . | . . . . . . . Salvage Created 581 | . 98 . . 48 106 329 Parts 44 | . 6 . . 5 7 26 Haulers Intercepted . | . . . . . . . Recyclers Shooed . | . . . . . . . Parts Field Recycled . | . . . . . . . Retrieved Matter . | . . . . . . . Parts Self-Destructed . | . . . . . . . Prevented . | . . . . . . . Kills | -11 -10 -10 -9 -9 -8 -8 ------- Run | Yrd Mat Min Mat Min Mat Sto Combat Hostiles Destroyed 18 | . 2 . . 4 2 10 Melee 1 | . . . . . 1 . Guns 5 | . 2 . . 2 1 . Cannons 5 | . . . . . . 5 AOE 7 | . . . . 2 . 5 Classes Destroyed 8 | . 2 . . 2 1 3 Recycler 1 | . . . . . . 1 Mechanic 1 | . . . . . . 1 Operator 1 | . . . . . . 1 Watcher 3 | . 1 . . . . 2 Swarmer 8 | . . . . 3 . 5 Grunt 3 | . 2 . . . . 1 Sentry 6 | . . . . . 2 4 Assembled 1 | . . . . 1 . . Best Kill Streak 9 | . 3 . . 4 1 9 Combat Bots Only 5 | . 2 . . 4 1 5 Max Kills in Single Turn 3 | . 1 . . 2 1 3 Gunslinging . | . . . . . . . Exploded 2 | . . . . 2 . 2 Melee 1 | . . . . . 1 . Uniques/NPCs Destroyed . | . . . . . . . Combat | -11 -10 -10 -9 -9 -8 -8 -------- Run | Yrd Mat Min Mat Min Mat Sto Hostile Shots Fired 188 | . 20 . 3 16 28 121 Missed 57 | . 6 . 1 6 5 39 Damage Taken 2021 | . 168 . 52 120 455 1226 Core 580 | . 10 . . 20 27 523 Absorbed by Shields 4 | . . . . . 4 . Regen/Repaired (Parts) 24 | . . . . . 24 . Core Remaining (%) 97 | 100 . 96 . 95 . . Volleys Fired 45 | . 11 . 2 5 6 21 Largest 2 | . 2 . 2 2 2 2 Hottest 108 | . 70 . 50 93 108 89 Shots Fired 66 | . 22 . 4 6 8 26 Gun 42 | . 22 . 2 5 8 5 Cannon 14 | . . . . . . 14 Launcher 10 | . . . 2 1 . 7 Special . | . . . . . . . Kinetic 27 | . 11 . 2 . . 14 Thermal 22 | . 11 . . 5 6 . Explosive 10 | . . . 2 1 . 7 Electromagnetic 7 | . . . . . 2 5 Robot Hit Streak 12 | . 9 . . 4 12 8 Robot Miss Streak 6 | . 3 . . 2 1 6 Penetration Max . | . . . . . . . Secondary Targets . | . . . . . . . Shots Hit Robots 49 | . 16 . . 4 9 20 Core Hits 55 | . 6 . . 5 3 41 Critical Kills . | . . . . . . . Critical Parts Destroyed . | . . . . . . . Critical Strikes 4 | . 3 . . 1 . . Burn 4 | . 3 . . 1 . . Melee Attacks 5 | . . . . . 4 1 Impact 5 | . . . . . 4 1 Slashing . | . . . . . . . Piercing . | . . . . . . . Sneak Attacks . | . . . . . . . Combat Hostiles . | . . . . . . . Follow-up Attacks . | . . . . . . . Damage Inflicted 1594 | . 207 . . 142 185 1060 Guns 424 | . 207 . . 67 90 60 Cannons 286 | . . . . . . 286 Explosions 748 | . . . . 71 . 677 Melee 132 | . . . . . 95 37 Ramming 4 | . . . . 4 . . Kinetic 392 | . 106 . . . . 286 Thermal 270 | . 101 . . 100 69 . Explosive 715 | . . . . 38 . 677 Electromagnetic 81 | . . . . . 21 60 Impact 132 | . . . . . 95 37 Slashing . | . . . . . . . Piercing . | . . . . . . . Highest Corruption . | . . . . . . . Average Corruption . | . . . . . . . Corruption Purged . | . . . . . . . Corruption Blocked . | . . . . . . . Overload Shots . | . . . . . . . Overflow Damage 44 | . . . . . 12 32 Projectiles . | . . . . . . . Explosions 32 | . . . . . . 32 Melee 12 | . . . . . 12 . Knockbacks 5 | . . . . . . 5 Impact . | . . . . . . . Kinetic 5 | . . . . . . 5 Secondary . | . . . . . . . Self-Inflicted Damage 150 | . . . 20 2 . 128 Shots 4 | . . . 1 . . 3 Rammed 1 | . . . . 1 . . Targets Rammed 1 | . . . . 1 . . Kicked . | . . . . . . . Crushed . | . . . . . . . Highest Temperature 209 | . 114 . 16 209 175 17 Average Temperature 70 | . 70 . 8 104 56 9 Received Heat Transfer 673 | . 96 . 9 46 135 387 Siege Activations . | . . . . . . . Robots Corrupted . | . . . . . . . Combat Hostiles . | . . . . . . . Parts Fried . | . . . . . . . Impact Corruptions 1 | . . . . . 1 . Robots Melted . | . . . . . . . Combat Hostiles . | . . . . . . . Parts Melted 3 | . 3 . . . . . Heat Transferred 938 | . 518 . . 272 148 . Parts Sabotaged . | . . . . . . . Parts Stolen . | . . . . . . . Parts Stripped . | . . . . . . . Power Chain Reactions . | . . . . . . . Alert | -11 -10 -10 -9 -9 -8 -8 ------- Run | Yrd Mat Min Mat Min Mat Sto Peak Influence 372 | . 76 29 148 184 238 372 Initial 89 | . . 29 11 57 69 89 Average 118 | . 37 29 50 142 174 204 Maximum Alert Level 1 | . . . . . 1 1 Low Security (%) 79 | 100 100 100 100 100 47 51 Level 1 20 | . . . . . 52 48 Level 2 . | . . . . . . . Level 3 . | . . . . . . . Level 4 . | . . . . . . . Level 5 . | . . . . . . . High Security . | . . . . . . . Max Security . | . . . . . . . Squads Dispatched 2 | . . . . . . 2 Investigation . | . . . . . . . Extermination . | . . . . . . . Reinforcement 2 | . . . . . . 2 Assault . | . . . . . . . Garrison . | . . . . . . . Intercept . | . . . . . . . Searches Triggered . | . . . . . . . Construction Impeded 1 | . . . . . . 1 Haulers Reinforced . | . . . . . . . Active Scanning Responses . | . . . . . . . Cargo Convoy Interrupts . | . . . . . . . Stealth | -11 -10 -10 -9 -9 -8 -8 --------- Run | Yrd Mat Min Mat Min Mat Sto Distress Signals 4 | . 1 . . . 2 1 Communications Jammed . | . . . . . . . Distress Signals . | . . . . . . . Times Spotted 52 | . 4 . 8 8 15 17 Peak Tracking Total 9 | . 4 . 7 4 8 9 Tactical Retreats 2 | . . . . . 2 . Traps | -11 -10 -10 -9 -9 -8 -8 ------- Run | Yrd Mat Min Mat Min Mat Sto Traps Triggered . | . . . . . . . Indirectly . | . . . . . . . Trap Hack Attempts . | . . . . . . . Triggered . | . . . . . . . Disarmed . | . . . . . . . Reprogrammed . | . . . . . . . Reused . | . . . . . . . Traps Extracted . | . . . . . . . Installed . | . . . . . . . Triggered . | . . . . . . . Machines | -11 -10 -10 -9 -9 -8 -8 ---------- Run | Yrd Mat Min Mat Min Mat Sto Machines Disabled 6 | . . . 1 3 . 2 Max in Single Turn 3 | . . . 1 3 . 2 Machines Repaired . | . . . . . . . Machines Dismantled . | . . . . . . . Machines Sabotaged . | . . . . . . . Overloaded Fab Kills . | . . . . . . . Hacking | -11 -10 -10 -9 -9 -8 -8 --------- Run | Yrd Mat Min Mat Min Mat Sto Machines Accessed 5 | . 1 . 1 1 1 1 Terminals 2 | . 1 . 1 . . . Fabricators . | . . . . . . . Repair Stations 2 | . . . . . 1 1 Recycling Units . | . . . . . . . Scanalyzers . | . . . . . . . Garrison Access . | . . . . . . . Total Hacks 10 | . 1 . 2 1 4 2 Successful 6 | . 1 . . 1 2 2 Failed 4 | . . . 2 . 2 . Catastrophic . | . . . . . . . Database Lockouts . | . . . . . . . Manual 1 | . . . 1 . . . Terminals 3 | . 1 . 2 . . . Fabricators . | . . . . . . . Repair Stations 6 | . . . . . 4 2 Recycling Units . | . . . . . . . Scanalyzers . | . . . . . . . Garrison Access . | . . . . . . . Terminal Hacks 2 | . 1 . . 1 . . Open Door 1 | . . . . 1 . . Locate Traps 1 | . 1 . . . . . Fabricator Hacks . | . . . . . . . Repair Station Hacks 4 | . . . . . 2 2 Scan Component 2 | . . . . . 1 1 Repair 2 | . . . . . 1 1 Recycling Unit Hacks . | . . . . . . . Scanalyzer . | . . . . . . . Garrison Access Hacks . | . . . . . . . Unauthorized Hacks . | . . . . . . . Terminals . | . . . . . . . Fabricators . | . . . . . . . Repair Stations . | . . . . . . . Recycling Units . | . . . . . . . Scanalyzers . | . . . . . . . Garrison Access . | . . . . . . . Data Cores Recovered . | . . . . . . . Used . | . . . . . . . Hacking Detections 4 | . 1 . 1 . 1 1 Full Trace Events 1 | . . . . . 1 . Feedback Events . | . . . . . . . Feedback Blocked . | . . . . . . . Robot Schematics Acquired . | . . . . . . . Robots Built . | . . . . . . . Authchips . | . . . . . . . Time . | . . . . . . . Total Robot Build Rating . | . . . . . . . Part Schematics Acquired . | . . . . . . . Parts Built . | . . . . . . . Authchips . | . . . . . . . Time . | . . . . . . . Total Part Build Rating . | . . . . . . . Parts Repaired 1 | . . . . . 1 . Time 76 | . . . . . 32 44 Parts Recycled . | . . . . . . . Recycled Matter . | . . . . . . . Retrieved Matter . | . . . . . . . Retrieved Components . | . . . . . . . Parts Scanalyzed . | . . . . . . . Part Schematics Acquired . | . . . . . . . Parts Damaged . | . . . . . . . Bothacking | -11 -10 -10 -9 -9 -8 -8 ------------ Run | Yrd Mat Min Mat Min Mat Sto Used RIF Installer . | . . . . . . . Robots Hacked . | . . . . . . . Non-combat . | . . . . . . . Combat . | . . . . . . . Robot Hacks Applied . | . . . . . . . Relay Couplers Released . | . . . . . . . Fabnet Peak Effective % . | . . . . . . . Robots Rewired . | . . . . . . . Allies Hacked . | . . . . . . . Hacks Repelled . | . . . . . . . Allies | -11 -10 -10 -9 -9 -8 -8 -------- Run | Yrd Mat Min Mat Min Mat Sto Total Allies 4 | . . 1 . 3 . . Largest Group 3 | . . . 1 3 3 . Highest-Rated Group 40 | . . . 31 40 40 . Highest-Rated Ally 31 | . . . 31 31 16 . Total Orders . | . . . . . . . Ally Attacks 42 | . . . 13 2 27 . Total Damage 505 | . . . 190 41 274 . Kills 6 | . . . 3 1 2 . Allies Corrupted . | . . . . . . . Allies Melted . | . . . . . . . Intel | -11 -10 -10 -9 -9 -8 -8 ------- Run | Yrd Mat Min Mat Min Mat Sto Robot Analysis Total . | . . . . . . . Derelict Logs Recovered 1 | . . . . 1 . . Drone Launches . | . . . . . . . Drone Recoveries . | . . . . . . . Exploration | -11 -10 -10 -9 -9 -8 -8 ------------- Run | Yrd Mat Min Mat Min Mat Sto Turns Passed 928 | 53 187 7 149 146 159 227 Spaces Moved 971 | 42 142 8 241 217 210 111 Core 33 | 10 . . . . . 23 Treads 31 | . . . . . . 31 Legs . | . . . . . . . Wheels 182 | 32 142 8 . . . . Hover 722 | . . . 241 217 210 54 Flight 3 | . . . . . . 3 Fastest Speed 40 | 50 100 100 48 48 48 40 Average Speed 65 | 88 100 100 48 48 49 112 Slowest Speed 280 | 100 100 100 57 48 112 280 Overloaded Moves . | . . . . . . . Propulsion Burnouts . | . . . . . . . Robots Hopped . | . . . . . . . Cave-ins Triggered . | . . . . . . . Exploration Rate (%) 27 | 3 40 4 24 68 23 33 Regions Visited 6 Branch Regions 3 Pre-discovered Areas 1 | . . . . 1 . . Known Exits Taken . | . . . . . . . Unknown Exits Taken 6 | 1 1 1 1 1 1 . Scrap Searched . | . . . . . . . Spaces Dug . | . . . . . . . Terrain Destroyed 80 | . . . 20 15 . 45 Melee . | . . . . . . . Projectile . | . . . . . . . AOE 80 | . . . 20 15 . 45 Terrain Rammed . | . . . . . . . Walls Destroyed . | . . . . . . . Machines Disabled . | . . . . . . . Actions | -11 -10 -10 -9 -9 -8 -8 --------- Run | Yrd Mat Min Mat Min Mat Sto Total 1185 | 57 167 7 273 251 248 182 Wait 78 | . . . 2 21 21 34 Move 965 | 41 141 7 240 216 209 111 Hop . | . . . . . . . Pick Up 31 | 11 7 . 7 1 2 3 Fast Attach 11 | 1 . . . . 3 7 Attach 16 | 4 3 . 4 . 2 3 Detach 1 | . . . 1 . . . Swap 15 | . 1 . 6 5 1 2 Drop 17 | . 4 . 11 2 . . Fire 45 | . 11 . 2 5 6 21 Melee 5 | . . . . . 4 1 Ram 1 | . . . . 1 . . Kick . | . . . . . . . Crush . | . . . . . . . Escape Stasis . | . . . . . . . Rewire . | . . . . . . . Trap . | . . . . . . . Miscellaneous . | . . . . . . . Route ------- -11/Scrapyard -10/Materials (discovered 3 exits: *Mat / [*Min x2]) -10/Mines -9/Materials -9/Mines -8/Materials (discovered 2 exits: Fac / *Sto) -8/Storage History --------- Turn | Location | Event 15 | -11/Scrapyard | Discovered new exit (range 15) 54 | -11/Scrapyard | Entered Materials 93 | -10/Materials | Discovered new exit (range 16) 146 | -10/Materials | Discovered new exit (range 15) 216 | -10/Materials | Discovered new exit (range 8) 241 | -10/Materials | Entered Mines 241 | -10/Mines | Discovered new exit (range 6) 244 | -10/Mines | Received a Mining Laser from a helpful Derelict 248 | -10/Mines | Entered Materials 248 | -9/Materials | Accompanied by 1 ally 248 | -9/Materials | Evolved 2 slots: Propulsion x2 373 | -9/Materials | Build established: Mutant 377 | -9/Materials | Discovered new exit (range 11) 397 | -9/Materials | Entered Mines 397 | -9/Mines | Accompanied by 1 ally 398 | -9/Mines | Learned location of Storage (-8) 410 | -9/Mines | Assembled infested the area 415 | -9/Mines | Assisted by a Guerilla fighting off Assembled 416 | -9/Mines | Learned location of 1 exit from Materials 418 | -9/Mines | Met a Derelict bent on vengeance 491 | -9/Mines | Met a Derelict who couldn't figure out how to use a Trap Extractor 525 | -9/Mines | Discovered new exit (range 9) 529 | -9/Mines | Assisted by bots powering up and referring to "LRC-V3" 543 | -9/Mines | Entered Materials 543 | -8/Materials | Accompanied by 3 allies 543 | -8/Materials | Evolved 2 slots: Utility x2 544 | -8/Materials | Identified exit to Factory 634 | -8/Materials | Repaired Imp. Hover Unit 654 | -8/Materials | Lost 3 allies 700 | -8/Materials | Discovered new exit (range 4) 702 | -8/Materials | Entered Storage 730 | -8/Storage | Lost 4 parts (3u1w) 783 | -8/Storage | Lost 3 parts (2n1u) 850 | -8/Storage | Lost 3 parts (1p2n) 900 | -8/Storage | Core integrity fell below 50% 916 | -8/Storage | Core integrity fell below 20% 929 | -8/Storage | Destroyed self with Improved Grenade Launcher Last Messages --------------- 00911_ U-05 Engineer lays Concrete. 00912_ W-25 Informer destroyed. 00912_ S-10 Pest destroyed. 00912_ K-01 Serf collects debris. 00914_ U-05 Engineer builds a Door. 00915_ Acquired Flight Unit. 00917_ Flight Unit destroyed. 00917_ Mni. Grenade Launcher destroyed. 00918_ The unstable cave ceiling collapses. 00918_ K-01 Serf collects debris. 00918_ U-05 Engineer lays Concrete. 00919_ Flight Unit destroyed. 00919_ U-05 Engineer lays Concrete. 00921_ K-01 Serf collects debris. 00921_ U-05 Engineer builds a Wall. 00923_ Acquired Imp. Grenade Launcher. 00925_ K-01 Serf collects debris. 00926_ The unstable cave ceiling collapses. 00926_ Lgt. Armor Plating crushed. 00928_ K-01 Serf collects debris. Map ----- +----------------------------------------------------+ | | | | | | | | | | | | | ???????????????????????????????????????????? | | ??????????????????????????????????????????## | | ??????????????????????????????????????????T# | | ?????????????????????????????????????????? # | | ?????????????????????????????????????????? + | | ?????????????????????????########?### # # | | ?????????????????????????########?########## | | ?????????????????????????# ? # """ """ | | ???????????????????????###% ""? # """ """ | | ???????????????????????### """ # """ """ | | ???????????????????????## """ # | | ???????????????????????### """ """ # | | ????????????????????????## "Y """ # | | ????????????????????????## """ # ! | | ???????????????????????### # = | | ?????????????????##### ####+#########+### | | ?????????????????##### ## | | ?????????????????## Y ! ## | | ?????????????????## ## | | ?????????????????##@ #######+### | | ?????????????????## s k # | | ?????????????????## """ %* * #???? | | ?????????????????## """ !%# #???? | | ?????????????????## """ g==! #???? | | ??????????????????# #???? | | ??????????????????###### # ##???? | | ???????????????????## ## #???? | | ??????????????????????? = #????###### | | ?????????????????????? # = ??? ## | | ????????????????????? #! * # "???????? | | ????????????????????? + ! # T???????? | | ???????????????????? !!! # ##?"???????? | | ??????????????????? !!! #^ ##?????????? | | ???????????????????? !! # ^ #??????????? | | ?????????????????????? # #??????????? | | ???????????????????????#####? ????????????? | | ???????????????????????????????????????????? | | ???????????????????????????????????????????? | | ???????????????????????????????????????????? | | ???????????????????????????????????????????? | | ???????????????????????????????????????????? | | ???????????????????????????????????????????? | | ???????????????????????????????????????????? | | ???????????????????????????????????????????? | +----------------------------------------------------+ Best States ------------- Heat Dissipation 41 Energy Generation 15 Energy Capacity 465 Matter Stores 276 Matter Capacity 300 Sight Range 16 Terrain Scan Density 10 Armor Coverage 300 Evasion (%) 55 Recoil Reduction 1 Item Schematics ----------------- None Robot Schematics ------------------ None Fabricated ------------ Nothing Alien Tech Used ----------------- None Achievements -------------- None Challenges ------------ None Game ------ Seed SuperquantumAntigravFlakker Manual? 0 Play Time 00:29:51 Cumulative 146.6 hours Start 2024.09.03 @ 20:42:48 End 2024.09.03 @ 22:32:11 Sessions 1 Manual Loads 0 Difficulty Rogue Special Mode None Game No. 207 Rogue 207 Adventurer 0 Explorer 0 Win Type - Total 0 Types 0/0/0/0/0/0/0/0/0 Lore% 31 Gallery% 59 Achievement% 40 Wizard Run 0 Options --------- Layout 0 ASCII 0 Keyboard 0 Movement Mouse Keybinds 0 Fullscreen 1 Font 24/Smallcaps Map View 76x50 Zoom Use 0% Tactical HUD 1 Map Filters NONE Filters NONE Steam 1 RUN: 9c2e4865-6277-44a3-8e7c-b3ac3474184b